bitfinex/quotes_BTCUSD_20250221
["timestamp","ask_amount","ask_price","bid_price","bid_amount"]
[1740107343301,0.07899413,98302.0,98301.0,0.167293]
[1740107343714,0.07899413,98302.0,98301.0,0.014701]
[1740107344748,0.07899413,98302.0,98301.0,0.167293]
[1740107345153,0.07899413,98302.0,98301.0,0.014701]
[1740107348679,0.23158413,98302.0,98301.0,0.014701]
[1740107348913,0.07899413,98302.0,98301.0,0.014701]
[1740107349127,0.23158413,98302.0,98301.0,0.014701]
[1740107351531,0.07899413,98302.0,98301.0,0.014701]
[1740107351984,0.00089413,98302.0,98301.0,0.014701]
[1740107355377,0.00089413,98302.0,98301.0,0.167293]
[1740107355519,0.00089413,98302.0,98301.0,0.014701]
[1740107355728,0.00089413,98302.0,98301.0,0.167293]
[1740107355929,0.00089413,98302.0,98301.0,0.014701]
[1740107356126,0.00089413,98302.0,98301.0,0.26993869]
[1740107356988,0.00089413,98302.0,98301.0,0.28005611]
[1740107357337,0.00089413,98302.0,98301.0,0.27725869]
[1740107375703,0.15348413,98302.0,98301.0,0.11734669]
[1740107375903,0.00089413,98302.0,98301.0,0.014701]
[1740107379882,0.15348413,98302.0,98301.0,0.014701]
[1740107387198,0.15348413,98302.0,98301.0,0.03377574]
[1740107389514,0.00089413,98302.0,98301.0,0.03377574]
[1740107391060,0.00089413,98302.0,98301.0,0.014701]
[1740107391561,0.00089413,98302.0,98301.0,0.167293]
[1740107391699,0.00089413,98302.0,98301.0,0.03377284]
[1740107392163,0.00089413,98302.0,98301.0,0.18636484]
[1740107393200,0.00089413,98302.0,98301.0,0.03377284]
[1740107396899,0.00089413,98302.0,98301.0,0.014701]
[1740107397526,0.15348413,98302.0,98301.0,0.014701]
[1740107398464,0.00089413,98302.0,98301.0,0.014701]
[1740107400685,0.00089413,98302.0,98301.0,0.1863668]
[1740107400902,0.00089413,98302.0,98301.0,0.0337748]
[1740107401111,0.00089413,98302.0,98301.0,0.1863668]
[1740107401735,0.00089413,98302.0,98301.0,0.0337748]
[1740107402896,0.15348413,98302.0,98301.0,0.0337748]
[1740107403297,0.22928413,98302.0,98301.0,0.0337748]
[1740107406750,0.07669413,98302.0,98301.0,0.0337748]
[1740107406910,0.22928413,98302.0,98301.0,0.0337748]
[1740107407316,0.07669413,98302.0,98301.0,0.0337748]
[1740107407546,0.22928413,98302.0,98301.0,0.0337748]
[1740107408084,0.07669413,98302.0,98301.0,0.0337748]
[1740107408689,0.00089413,98302.0,98301.0,0.0337748]
[1740107414552,0.00089413,98302.0,98301.0,0.1863668]
[1740107415942,0.00089413,98302.0,98301.0,0.0337748]
[1740107416325,0.00089413,98302.0,98301.0,0.1863668]
[1740107419904,0.00089413,98302.0,98301.0,0.0337748]
[1740107424877,0.15348413,98302.0,98301.0,0.0337748]
[1740107425035,0.22998413,98302.0,98301.0,0.0337748]
[1740107426801,0.37998413,98302.0,98301.0,0.0337748]
[1740107427404,0.42748413,98302.0,98301.0,0.0267748]
[1740107427555,0.42748413,98302.0,98301.0,0.014701]
[1740107427964,0.42748413,98302.0,98301.0,0.007701]
[1740107428396,0.42748413,98302.0,98301.0,0.008701]
[1740107428595,0.42748413,98302.0,98301.0,0.002701]
[1740107428995,0.42748413,98302.0,98301.0,0.004701]
[1740107455417,0.37998413,98302.0,98301.0,0.004701]
[1740107455621,0.00089413,98302.0,98301.0,0.004701]
[1740107456228,0.15348413,98302.0,98301.0,0.004701]
[1740107456425,0.00089413,98302.0,98301.0,0.004701]
[1740107456777,0.15348413,98302.0,98301.0,0.004701]
[1740107461545,0.00089413,98302.0,98301.0,0.004701]
[1740107462288,0.15348413,98302.0,98301.0,0.004701]
[1740107462688,0.00089413,98302.0,98301.0,0.004701]
[1740107463206,0.15348413,98302.0,98301.0,0.004701]
[1740107464756,0.00089413,98302.0,98301.0,0.004701]
[1740107467958,0.15348413,98302.0,98301.0,0.004701]
[1740107469370,0.00089413,98302.0,98301.0,0.004701]
[1740107469775,0.15348413,98302.0,98301.0,0.004701]
[1740107475829,0.00089413,98302.0,98301.0,0.004701]
[1740107477364,0.00089413,98302.0,98301.0,0.157293]
[1740107480307,0.00089413,98302.0,98301.0,0.25993869]
[1740107480527,0.00089413,98302.0,98301.0,0.35263689]
[1740107480910,0.00089413,98302.0,98301.0,0.35163689]
[1740107481383,0.00089413,98302.0,98301.0,0.34963689]
[1740107481541,0.00089413,98302.0,98301.0,0.35363689]
[1740107481945,0.00089413,98302.0,98301.0,0.35463689]
[1740107482931,0.00089413,98302.0,98301.0,0.35063689]
[1740107483296,0.00089413,98302.0,98301.0,0.35463689]
[1740107483699,0.00089413,98302.0,98301.0,0.36163689]
[1740107491307,0.00089413,98302.0,98301.0,0.27933689]
[1740107504650,0.00089413,98302.0,98301.0,0.26893869]
[1740107504854,0.00063981,98302.0,98301.0,0.26893869]
[1740107506697,0.00063981,98302.0,98301.0,0.59753869]
[1740107508489,0.00063981,98302.0,98301.0,0.72353869]
[1740107511662,0.00063981,98302.0,98301.0,0.71853869]
[1740107511900,0.00063981,98302.0,98301.0,0.71153869]
[1740107512120,0.00063981,98302.0,98301.0,0.71853869]
[1740107512804,0.00063981,98302.0,98301.0,0.84713869]
[1740107514787,0.00063981,98302.0,98301.0,0.76913869]
[1740107524525,0.00063981,98302.0,98301.0,0.64553869]
[1740107536462,0.00063981,98302.0,98301.0,0.67732057]
[1740107538320,0.00063981,98302.0,98301.0,0.68766616]
[1740107543860,0.00063981,98302.0,98301.0,0.63966616]
[1740107547994,0.00063981,98302.0,98301.0,0.61516428]
[1740107552241,0.00058287,98302.0,98301.0,0.61516428]
[1740107555862,0.00058287,98302.0,98301.0,2.11516428]
[1740107556601,0.00058287,98302.0,98301.0,0.61516428]
[1740107558506,0.00058287,98302.0,98301.0,2.11516428]
[1740107559307,0.00058287,98302.0,98301.0,0.61516428]
[1740107560438,0.00058287,98302.0,98301.0,2.11516428]
[1740107561735,0.00058287,98302.0,98301.0,0.61516428]
[1740107567731,0.00058287,98302.0,98301.0,0.62970513]
[1740107584861,0.00058287,98302.0,98301.0,2.12970513]
[1740107587760,0.00058287,98302.0,98301.0,0.62970513]
[1740107588161,0.00058287,98302.0,98301.0,0.6614964]
[1740107589367,0.00058287,98302.0,98301.0,0.62970513]
[1740107590212,0.00058287,98302.0,98301.0,0.60788428]
[1740107590403,0.00058287,98302.0,98301.0,0.61516428]
[1740107593708,0.00058287,98302.0,98301.0,2.11516428]
[1740107597160,0.00058287,98302.0,98301.0,0.61516428]
[1740107598713,0.00058287,98302.0,98301.0,0.60788428]
[1740107598918,0.00058287,98302.0,98301.0,0.61516428]
[1740107601224,0.00058287,98302.0,98301.0,2.11516428]
[1740107604176,0.00033872,98302.0,98301.0,0.61516428]
[1740107604680,0.00033872,98302.0,98301.0,2.11516428]
[1740107607665,0.00033872,98302.0,98301.0,0.61516428]
[1740107608237,0.00033872,98302.0,98301.0,2.11516428]
[1740107610007,0.00033872,98302.0,98301.0,0.61516428]
[1740107613704,0.00033872,98302.0,98301.0,2.11516428]
[1740107614584,0.00033872,98302.0,98301.0,0.61516428]
[1740107647553,0.00033872,98302.0,98301.0,0.46257228]
[1740107647788,0.28042872,98302.0,98301.0,0.44494669]
[1740107648765,0.28042872,98302.0,98301.0,0.013701]
[1740107649695,0.28042872,98302.0,98301.0,0.001701]
[1740107649941,0.28042872,98302.0,98301.0,0.008701]
[1740107650145,0.28042872,98302.0,98301.0,0.012701]
[1740107650387,0.28042872,98302.0,98301.0,0.005701]
[1740107650618,0.28042872,98302.0,98301.0,0.007701]
[1740107650831,0.28042872,98302.0,98301.0,0.012701]
[1740107651252,0.28042872,98302.0,98301.0,0.007701]
[1740107651397,0.28042872,98302.0,98301.0,0.006701]
[1740107651600,0.28042872,98302.0,98301.0,0.008701]
[1740107653830,0.28042872,98302.0,98301.0,0.001701]
[1740107654148,0.28042872,98302.0,98301.0,0.006701]
[1740107654656,0.28042872,98302.0,98301.0,0.001701]
[1740107654866,0.28042872,98302.0,98301.0,0.003701]
[1740107656090,0.28042872,98302.0,98301.0,0.008701]
[1740107656505,0.28042872,98302.0,98301.0,0.003701]
[1740107656857,0.28042872,98302.0,98301.0,0.006701]
[1740107657034,0.28042872,98302.0,98301.0,0.008701]
[1740107657843,0.28042872,98302.0,98301.0,0.010701]
[1740107664023,0.27942872,98302.0,98301.0,0.010701]
[1740107664426,0.12683872,98302.0,98301.0,0.010701]
[1740107665949,0.27942872,98302.0,98301.0,0.010701]
[1740107667471,0.28027952,98302.0,98301.0,0.010701]
[1740107682059,0.12768952,98302.0,98301.0,0.010701]
[1740107682253,0.28027952,98302.0,98301.0,0.010701]
[1740107682614,0.12768952,98302.0,98301.0,0.010701]
[1740107682822,0.28027952,98302.0,98301.0,0.010701]
[1740107684481,0.12768952,98302.0,98301.0,0.010701]
[1740107684810,0.28027952,98302.0,98301.0,0.010701]
[1740107692412,0.43027952,98302.0,98301.0,0.010701]
[1740107693458,0.43027952,98302.0,98301.0,0.005701]
[1740107693780,0.43027952,98302.0,98301.0,0.009701]
[1740107694870,0.43027952,98302.0,98301.0,0.001701]
[1740107695311,0.43027952,98302.0,98301.0,0.002701]
[1740107695591,0.43027952,98302.0,98301.0,0.001701]
[1740107695984,0.43027952,98302.0,98301.0,0.002701]
[1740107696132,0.43027952,98302.0,98301.0,0.006701]
[1740107703664,0.43027952,98302.0,98301.0,0.002701]
[1740107703875,0.43027952,98302.0,98301.0,0.003701]
[1740107704392,0.43027952,98302.0,98301.0,0.002701]
[1740107715589,0.53292521,98302.0,98301.0,0.002701]
[1740107720637,0.85522521,98302.0,98301.0,0.002701]
[1740107721980,0.86976606,98302.0,98301.0,1e-06]
[1740107722193,0.90094384,98302.0,98301.0,1e-06]
[1740107722411,1.02358953,98302.0,98301.0,1e-06]
[1740107723265,0.72416081,98302.0,98276.0,0.0017016]
[1740107723450,0.302629,98277.0,98276.0,0.0017016]
[1740107724973,0.31281137,98277.0,98276.0,0.0017016]
[1740107725328,0.31281137,98277.0,98276.0,0.0027016]
[1740107725961,0.31281137,98277.0,98276.0,0.0017016]
[1740107726188,0.31281137,98277.0,98276.0,0.0027016]
[1740107728916,0.32041334,98277.0,98276.0,0.0027016]
[1740107729044,0.16018237,98277.0,98276.0,0.0027016]
[1740107729667,0.203492,98284.0,98276.0,0.0027016]
[1740107730032,0.0098246,98286.0,98276.0,0.0027016]
[1740107730248,0.15,98279.0,98276.0,0.0027016]
[1740107730460,0.302627,98279.0,98276.0,0.0027016]
[1740107730599,0.15,98279.0,98276.0,0.0027016]
[1740107731407,0.152629,98277.0,98276.0,0.0027016]
[1740107731611,0.152629,98277.0,98276.0,0.0017016]
[1740107732800,0.152629,98277.0,98276.0,0.0027016]
[1740107733156,0.152629,98277.0,98276.0,0.0017016]
[1740107733365,0.152629,98277.0,98276.0,0.0047016]
[1740107733767,0.0098246,98286.0,98276.0,0.0047016]
[1740107734173,0.152629,98277.0,98276.0,0.0047016]
[1740107735328,0.152629,98277.0,98276.0,0.0027016]
[1740107736531,0.152629,98277.0,98276.0,0.0057016]
[1740107738122,0.15348,98277.0,98276.0,0.0057016]
[1740107741731,0.000851,98277.0,98276.0,0.0057016]
[1740107741883,0.15348,98277.0,98276.0,0.0057016]
[1740107744788,0.15348,98277.0,98276.0,0.0057016]
[1740107746785,0.000851,98277.0,98276.0,0.0057016]
[1740107747002,0.15348,98277.0,98276.0,0.0057016]
[1740107747536,0.000851,98277.0,98276.0,0.0057016]
[1740107747892,0.15348,98277.0,98276.0,0.0057016]
[1740107751439,0.000851,98277.0,98276.0,0.0057016]
[1740107756531,0.000851,98277.0,98276.0,0.1583326]
[1740107757332,0.000851,98277.0,98276.0,0.26097829]
[1740107765793,0.000851,98277.0,98276.0,0.34097829]
[1740107766792,0.000851,98277.0,98276.0,0.33797829]
[1740107767149,0.000851,98277.0,98276.0,0.33997829]
[1740107767609,0.000851,98277.0,98276.0,0.33797829]
[1740107767900,0.000851,98277.0,98276.0,0.34497829]
[1740107768200,0.000851,98277.0,98276.0,0.34997829]
[1740107768967,0.000851,98277.0,98276.0,0.34397829]
[1740107769166,0.000851,98277.0,98276.0,0.34997829]
[1740107769612,0.000851,98277.0,98276.0,0.34297829]
[1740107769948,0.000851,98277.0,98276.0,0.34997829]
[1740107773121,0.000851,98277.0,98276.0,0.26997829]
[1740107790839,0.000851,98277.0,98276.0,0.28907059]
[1740107795410,0.000851,98277.0,98276.0,0.28307059]
[1740107795653,0.000851,98277.0,98276.0,0.27607059]
[1740107795807,0.000851,98277.0,98276.0,0.28907059]
[1740107801541,0.0098562,98291.0,98288.0,0.152612]
[1740107801951,0.233803,98294.0,98288.0,0.152612]
[1740107802833,0.233803,98294.0,98288.0,0.159612]
[1740107804052,0.0812,98294.0,98288.0,0.007]
[1740107804188,0.0812,98294.0,98280.0,0.10444142]
[1740107804395,0.0812,98294.0,98289.0,0.152609]
[1740107804593,0.0812,98294.0,98289.0,0.152611]
[1740107804833,0.0812,98294.0,98290.0,0.152608]
[1740107805040,0.0812,98294.0,98288.0,0.005]
[1740107805246,0.0099463,98298.0,98297.0,0.152598]
[1740107805403,0.0099463,98298.0,98297.0,0.25524369]
[1740107805614,0.0008508,98302.0,98301.0,0.152592]
[1740107805941,0.0008508,98302.0,98301.0,0.25523769]
[1740107806117,0.0008508,98302.0,98301.0,0.26533409]
[1740107808069,0.0008508,98302.0,98301.0,0.27233409]
[1740107808210,0.0008508,98302.0,98301.0,0.27833409]
[1740107809573,0.0008508,98302.0,98301.0,0.36990056]
[1740107812792,0.0008508,98302.0,98301.0,0.27833409]
[1740107822885,0.0008508,98302.0,98301.0,0.27133409]
[1740107823153,0.0008508,98302.0,98301.0,0.26533409]
[1740107823350,0.0008508,98302.0,98301.0,0.27933409]
[1740107831529,0.0008508,98302.0,98301.0,0.28661409]
[1740107838019,0.0008508,98302.0,98301.0,0.11664569]
[1740107838180,0.2303408,98302.0,98301.0,0.11664569]
[1740107838583,0.0777508,98302.0,98301.0,0.11664569]
[1740107845539,0.0777508,98302.0,98301.0,0.014]
[1740107845905,0.2776408,98302.0,98301.0,0.014]
[1740107849084,0.1250508,98302.0,98301.0,0.014]
[1740107851012,0.2776408,98302.0,98301.0,0.014]
[1740107862913,0.1250508,98302.0,98301.0,0.014]
[1740107863118,0.0777508,98302.0,98301.0,0.014]
[1740107864059,0.0008508,98302.0,98301.0,0.26923769]
[1740107865116,0.0008508,98302.0,98301.0,1.75523769]
[1740107865564,0.0008508,98302.0,98301.0,1.76923769]
[1740107865773,0.0008508,98302.0,98301.0,0.27651769]
[1740107865980,0.0008508,98302.0,98301.0,0.26951769]
[1740107866304,0.0008508,98302.0,98301.0,0.28351769]
[1740107866886,0.0008508,98302.0,98301.0,0.26951769]
[1740107867086,0.0008508,98302.0,98301.0,0.27651769]
[1740107868010,0.0008508,98302.0,98301.0,0.26951769]
[1740107868552,0.0008508,98302.0,98301.0,0.27651769]
[1740107868687,0.0008508,98302.0,98301.0,0.26251769]
[1740107868893,0.0008508,98302.0,98301.0,0.26951769]
[1740107869080,0.0008508,98302.0,98301.0,0.60511769]
[1740107870331,0.0008508,98302.0,98301.0,0.61211769]
[1740107871174,0.0008508,98302.0,98301.0,0.60511769]
[1740107871376,0.0008508,98302.0,98301.0,0.61211769]
[1740107872377,0.0008508,98302.0,98301.0,0.63214424]
[1740107883733,0.0008508,98302.0,98301.0,0.62486424]
[1740107883934,0.0008508,98302.0,98301.0,0.63214424]
[1740107887000,0.0008508,98302.0,98301.0,0.30354424]
[1740107889974,0.0008508,98302.0,98301.0,1.80354424]
[1740107892791,0.0008508,98302.0,98301.0,0.30354424]
[1740107893315,0.0008508,98302.0,98301.0,1.80354424]
[1740107894754,0.0008508,98302.0,98301.0,0.30354424]
[1740107898712,0.0008508,98302.0,98301.0,1.80354424]
[1740107901634,0.0008508,98302.0,98301.0,0.30354424]
[1740107902070,0.0008508,98302.0,98301.0,1.80354424]
[1740107904772,0.0008508,98302.0,98301.0,0.30354424]
[1740107906747,0.0008508,98302.0,98301.0,1.80354424]
[1740107910365,0.0008508,98302.0,98301.0,0.30354424]
[1740107910726,0.0008508,98302.0,98301.0,2.13214424]
[1740107910931,0.0008508,98302.0,98301.0,0.63214424]
[1740107911349,0.0008508,98302.0,98301.0,2.13214424]
[1740107914875,0.0008508,98302.0,98301.0,0.62514424]
[1740107915080,0.0008508,98302.0,98301.0,2.13214424]
[1740107916369,0.0008508,98302.0,98301.0,2.11814424]
[1740107917885,0.0008508,98302.0,98301.0,2.12514424]
[1740107918066,0.0008508,98302.0,98301.0,0.61814424]
[1740107918295,0.0008508,98302.0,98301.0,0.62514424]
[1740107918501,0.0008508,98302.0,98301.0,2.11814424]
[1740107918918,0.0008508,98302.0,98301.0,2.12514424]
[1740107919317,0.0008508,98302.0,98301.0,2.11814424]
[1740107919520,0.0008508,98302.0,98301.0,2.12514424]
[1740107919718,0.0008508,98302.0,98301.0,2.12976091]
[1740107919937,0.0008508,98302.0,98301.0,0.62976091]
[1740107920608,0.0008508,98302.0,98301.0,0.62276091]
[1740107920840,0.0008508,98302.0,98301.0,0.62976091]
[1740107923954,0.0008508,98302.0,98301.0,2.12514424]
[1740107927094,0.0008508,98302.0,98301.0,0.62514424]
[1740107927741,0.0008508,98302.0,98301.0,2.12514424]
[1740107928838,0.0008508,98302.0,98301.0,2.11814424]
[1740107929099,0.0008508,98302.0,98301.0,0.62514424]
[1740107929940,0.000851,98304.0,98303.0,0.18712985]
[1740107929941,6e-07,98304.0,98303.0,0.18712985]
[1740107930299,6e-07,98304.0,98303.0,1.31455075]
[1740107930640,6e-07,98304.0,98303.0,2.81455075]
[1740107931191,6e-07,98304.0,98303.0,2.82855075]
[1740107931630,6e-07,98304.0,98303.0,2.82155075]
[1740107931838,6e-07,98304.0,98303.0,2.82855075]
[1740107934242,6e-07,98304.0,98303.0,1.34919988]
[1740107934454,6e-07,98304.0,98303.0,1.67779988]
[1740107934842,6e-07,98304.0,98303.0,1.68507988]
[1740107936125,6e-07,98304.0,98303.0,1.71684369]
[1740107936748,6e-07,98304.0,98303.0,3.21684369]
[1740107946061,6e-07,98304.0,98303.0,3.17779988]
[1740107946198,6e-07,98304.0,98303.0,3.18507988]
[1740107949352,6e-07,98304.0,98303.0,3.16507988]
[1740107949573,6e-07,98304.0,98303.0,3.15053903]
[1740107950442,0.1301006,98304.0,98303.0,0.61848382]
[1740107950674,0.0827006,98304.0,98303.0,0.61848382]
[1740107951124,6e-07,98304.0,98303.0,0.61848382]
[1740107951545,6e-07,98304.0,98303.0,0.61148382]
[1740107951746,6e-07,98304.0,98303.0,2.26848382]
[1740107951956,6e-07,98304.0,98303.0,2.33481195]
[1740107952592,6e-07,98304.0,98303.0,2.48570615]
[1740107953622,6e-07,98304.0,98303.0,2.56330615]
[1740107953825,6e-07,98304.0,98303.0,2.54930615]
[1740107954065,6e-07,98304.0,98303.0,2.56330615]
[1740107954276,6e-07,98304.0,98303.0,2.55630615]
[1740107954498,6e-07,98304.0,98303.0,2.54930615]
[1740107954640,6e-07,98304.0,98303.0,2.55630615]
[1740107954838,6e-07,98304.0,98303.0,2.56330615]
[1740107955454,6e-07,98304.0,98303.0,2.59217036]
[1740107956086,6e-07,98304.0,98303.0,2.56330615]
[1740107958207,6e-07,98304.0,98303.0,2.68690615]
[1740107960067,6e-07,98304.0,98303.0,0.8956653]
[1740107960288,6e-07,98304.0,98303.0,0.85111802]
[1740107960772,6e-07,98304.0,98303.0,1.00111802]
[1740107962705,6e-07,98304.0,98303.0,1.01565887]
[1740107962911,6e-07,98304.0,98303.0,2.53565887]
[1740107964091,6e-07,98304.0,98303.0,2.41205887]
[1740107966194,6e-07,98304.0,98303.0,2.44379271]
[1740107968397,6e-07,98304.0,98303.0,0.94379271]
[1740107968954,6e-07,98304.0,98303.0,2.44379271]
[1740107978292,6e-07,98304.0,98303.0,0.94379271]
[1740107978867,6e-07,98304.0,98303.0,2.44379271]
[1740107979328,6e-07,98304.0,98303.0,2.43655271]
[1740107979471,6e-07,98304.0,98303.0,2.44379271]
[1740107986198,6e-07,98304.0,98303.0,2.43655271]
[1740107986496,6e-07,98304.0,98303.0,2.44379271]
[1740107997629,0.0902425,98320.0,98303.0,2.44379271]
[1740107997630,0.0902425,98320.0,98319.0,0.152564]
[1740107997856,0.0902425,98320.0,98319.0,1.2799849]
[1740107998002,0.0803,98320.0,98319.0,1.2799849]
[1740107998408,0.0803,98320.0,98319.0,1.2872249]
[1740107999045,0.0803,98320.0,98319.0,1.2942249]
[1740107999985,0.0803,98320.0,98319.0,1.3012249]
[1740108002288,0.0811508,98320.0,98319.0,1.32167911]
[1740108018046,0.0811508,98320.0,98319.0,1.31443911]
[1740108018263,0.0811508,98320.0,98319.0,1.32167911]
[1740108021511,0.0008508,98320.0,98319.0,1.32167911]
[1740108022230,0.0008508,98320.0,98319.0,1.31443911]
[1740108022579,0.0008508,98320.0,98319.0,1.32167911]
[1740108027915,0.0008508,98320.0,98319.0,0.2969039]
[1740108041071,0.0008508,98320.0,98319.0,0.30152793]
[1740108043264,0.0008508,98320.0,98319.0,0.2969039]
[1740108047295,0.0008508,98320.0,98319.0,0.30152782]
[1740108048916,0.0008508,98320.0,98319.0,0.2969039]
[1740108074111,0.0008508,98325.0,98324.0,0.152556]
[1740108074316,0.0008508,98325.0,98324.0,0.25520169]
[1740108075528,0.0008508,98325.0,98324.0,0.26220169]
[1740108076046,0.0008508,98325.0,98324.0,0.26920169]
[1740108076721,0.0008508,98325.0,98324.0,0.27922211]
[1740108082599,0.0008508,98325.0,98324.0,0.29993553]
[1740108085293,0.2855058,98325.0,98324.0,0.14844703]
[1740108085598,0.2855058,98325.0,98324.0,0.11664569]
[1740108085599,0.1329508,98325.0,98324.0,0.11664569]
[1740108086359,0.1329508,98325.0,98324.0,0.10264569]
[1740108086765,0.1329508,98325.0,98324.0,0.11564569]
[1740108087165,0.1329508,98325.0,98324.0,0.10964569]
[1740108087354,0.1329508,98325.0,98324.0,0.11564569]
[1740108087543,0.1329508,98325.0,98324.0,0.12026758]
[1740108087898,0.1329508,98325.0,98324.0,0.11326758]
[1740108088280,0.2855058,98325.0,98324.0,0.12026758]
[1740108088704,0.2855058,98325.0,98324.0,0.01762189]
[1740108089105,0.4355058,98325.0,98324.0,0.01062189]
[1740108089314,0.4355058,98325.0,98324.0,0.00462189]
[1740108089512,0.4355058,98325.0,98324.0,0.01162189]
[1740108090150,0.4355058,98325.0,98324.0,0.01662189]
[1740108090352,0.4355058,98325.0,98324.0,0.007]
[1740108090583,0.4355058,98325.0,98324.0,0.01]
[1740108091246,0.4355058,98325.0,98324.0,0.003]
[1740108091445,0.4355058,98325.0,98324.0,0.007]
[1740108092052,0.4355058,98325.0,98324.0,0.003]
[1740108092292,0.4134378,98317.0,98316.0,0.09154486]
[1740108092496,0.152584,98307.0,98299.0,0.152595]
[1740108092703,0.1989,98317.0,98300.0,0.10264569]
[1740108092704,0.076,98306.0,98300.0,0.10264569]
[1740108093835,0.228584,98306.0,98300.0,0.10264569]
[1740108093974,0.076,98306.0,98300.0,0.10264569]
[1740108094180,0.152586,98305.0,98300.0,0.10264569]
[1740108094526,0.076,98306.0,98300.0,0.10264569]
[1740108094527,0.228584,98306.0,98300.0,0.10264569]
[1740108095067,0.152586,98305.0,98300.0,0.10264569]
[1740108095431,0.152588,98304.0,98300.0,0.10864569]
[1740108095857,0.076,98306.0,98300.0,0.11564569]
[1740108096059,0.152587,98304.0,98300.0,0.11564569]
[1740108096277,0.152587,98304.0,98300.0,0.10964569]
[1740108096408,0.152587,98304.0,98300.0,0.10864569]
[1740108096620,0.228585,98306.0,98300.0,0.11564569]
[1740108096814,0.228585,98306.0,98300.0,0.10964569]
[1740108097236,0.228585,98306.0,98300.0,0.11564569]
[1740108097910,0.228585,98306.0,98300.0,0.10864569]
[1740108098119,0.152586,98305.0,98300.0,0.10864569]
[1740108098651,0.152586,98305.0,98300.0,0.11564569]
[1740108098896,0.228584,98306.0,98300.0,0.11564569]
[1740108099107,0.228584,98306.0,98300.0,0.10964569]
[1740108099276,0.152586,98305.0,98300.0,0.10264569]
[1740108099583,0.152586,98305.0,98300.0,0.10864569]
[1740108099776,0.076,98306.0,98300.0,0.10864569]
[1740108100005,0.228585,98306.0,98300.0,0.11464569]
[1740108100335,0.228585,98306.0,98300.0,0.11564569]
[1740108100541,0.228585,98306.0,98300.0,0.12164569]
[1740108100832,0.152586,98305.0,98300.0,0.10964569]
[1740108101205,0.152586,98305.0,98300.0,0.11564569]
[1740108101406,0.076,98306.0,98300.0,0.10864569]
[1740108101629,0.228585,98306.0,98300.0,0.26123869]
[1740108101857,0.152586,98305.0,98300.0,0.11564569]
[1740108102558,0.152586,98305.0,98300.0,0.10964569]
[1740108102839,0.152586,98305.0,98300.0,0.10864569]
[1740108103033,0.152586,98305.0,98300.0,0.11564569]
[1740108103458,0.228584,98306.0,98300.0,0.11564569]
[1740108105006,0.076,98306.0,98300.0,0.10864569]
[1740108105353,0.152586,98305.0,98300.0,0.11564569]
[1740108105573,0.152586,98305.0,98300.0,0.10964569]
[1740108105773,0.152586,98305.0,98300.0,0.11564569]
[1740108106423,0.152586,98305.0,98300.0,0.10864569]
[1740108106566,0.152586,98305.0,98300.0,0.10964569]
[1740108106968,0.152586,98305.0,98300.0,0.11564569]
[1740108108624,0.152586,98305.0,98300.0,0.26994029]
[1740108109345,0.076,98306.0,98300.0,0.26994029]
[1740108109464,0.228585,98306.0,98300.0,0.26994029]
[1740108110235,0.228585,98306.0,98300.0,0.26394029]
[1740108110390,0.228585,98306.0,98300.0,0.26994029]
[1740108111159,0.228585,98306.0,98300.0,0.26294029]
[1740108111568,0.228585,98306.0,98300.0,0.26994029]
[1740108111747,0.076,98306.0,98300.0,0.26994029]
[1740108112278,0.076,98306.0,98302.0,0.15259]
[1740108112470,0.076,98306.0,98303.0,0.10264569]
[1740108112975,0.076,98306.0,98303.0,0.25523369]
[1740108113476,0.076,98306.0,98304.0,0.152587]
[1740108113616,0.076,98306.0,98303.0,0.10264569]
[1740108113993,0.0098285,98309.0,98308.0,0.152581]
[1740108114127,0.0098285,98309.0,98308.0,0.25522669]
[1740108114325,0.0829,98313.0,98308.0,0.10264569]
[1740108114572,0.0829,98313.0,98312.0,0.152575]
[1740108115940,0.0829,98313.0,98312.0,0.157575]
[1740108117430,0.0829,98313.0,98312.0,0.161575]
[1740108118165,0.0829,98313.0,98312.0,0.16619287]
[1740108120085,0.0829,98313.0,98312.0,0.161575]
[1740108120908,0.0829,98313.0,98312.0,0.009]
[1740108121195,0.0829,98313.0,98312.0,0.161575]
[1740108122409,0.0829,98313.0,98312.0,0.009]
[1740108123388,0.0829,98313.0,98312.0,0.161575]
[1740108125237,0.0829,98313.0,98312.0,0.009]
[1740108125437,0.0829,98313.0,98312.0,0.161575]
[1740108126898,0.0829,98313.0,98312.0,0.009]
[1740108128236,0.0829,98313.0,98312.0,0.161575]
[1740108128368,0.0829,98313.0,98312.0,0.009]
[1740108134292,0.0829,98313.0,98312.0,0.161575]
[1740108135913,0.0829,98313.0,98312.0,0.009]
[1740108148675,0.0829,98313.0,98312.0,0.161575]
[1740108148891,0.152568,98317.0,98312.0,0.009]
[1740108149643,0.152568,98317.0,98312.0,0.005]
[1740108149846,0.152568,98317.0,98311.0,0.152576]
[1740108150089,0.152568,98317.0,98312.0,0.007]
[1740108150886,0.152568,98317.0,98312.0,0.004]
[1740108151280,0.152568,98317.0,98311.0,0.155576]
[1740108151687,0.152568,98317.0,98311.0,0.159576]
[1740108152653,0.152568,98317.0,98311.0,0.156576]
[1740108152846,0.152568,98317.0,98312.0,0.003]
[1740108153052,0.152568,98317.0,98311.0,0.156576]
[1740108153381,0.152568,98317.0,98311.0,0.159576]
[1740108153994,0.152568,98317.0,98312.0,0.003]
[1740108154217,0.152568,98317.0,98311.0,0.156576]
[1740108154449,0.152568,98317.0,98311.0,0.152576]
[1740108154864,0.1624814,98318.0,98312.0,0.156574]
[1740108155274,0.1624814,98318.0,98312.0,0.152574]
[1740108156137,0.1624814,98318.0,98312.0,0.155574]
[1740108157307,0.152568,98317.0,98312.0,0.003]
[1740108157710,0.152568,98317.0,98312.0,0.006]
[1740108158211,0.152568,98317.0,98312.0,0.003]
[1740108158494,0.152568,98317.0,98312.0,0.007]
[1740108158704,0.152568,98317.0,98312.0,0.156575]
[1740108159099,0.152568,98317.0,98312.0,0.159575]
[1740108164595,0.0099154,98318.0,98312.0,0.007]
[1740108165441,0.0099154,98318.0,98310.0,0.203438]
[1740108165602,0.0099154,98318.0,98312.0,0.158574]
[1740108166869,0.0099154,98318.0,98312.0,0.155574]
[1740108167252,0.00995872,98318.0,98312.0,0.155574]
[1740108167850,0.16252472,98318.0,98312.0,0.155574]
[1740108168050,0.16252472,98318.0,98312.0,0.158574]
[1740108168770,0.16252472,98318.0,98312.0,0.158575]
[1740108169717,0.16252472,98318.0,98312.0,0.006]
[1740108169919,0.00995872,98318.0,98312.0,0.158574]